bitfinex/quotes_ETHUSD_20241207
["timestamp","ask_amount","ask_price","bid_price","bid_amount"]
[1733602285864,2.15418012,4014.3,4014.2,0.35738444]
[1733602286165,2.15418012,4014.3,4014.2,0.04327767]
[1733602286750,4.6603739,4014.3,4014.2,0.04327767]
[1733602286949,6.97867597,4014.3,4014.2,0.04327767]
[1733602287356,5.26508474,4014.3,4014.2,0.04327767]
[1733602287568,7.87029124,4014.3,4013.8,0.2]
[1733602287777,1.56294368,4013.9,4013.8,0.2]
[1733602287937,3.94969989,4013.9,4013.8,0.2]
[1733602288270,3.7171238,4013.9,4013.8,0.2]
[1733602288487,0.7829,4013.8,4013.7,0.1]
[1733602288639,4.89266192,4013.8,4013.6,0.2]
[1733602288965,3.94956306,4013.7,4013.6,0.2]
[1733602289338,3.71698445,4013.7,4013.6,0.2]
[1733602289552,3.71698445,4013.7,4013.6,0.3]
[1733602289983,3.71635338,4013.7,4013.6,0.3]
[1733602290148,3.71635338,4013.7,4013.6,0.1]
[1733602290685,3.94888252,4013.7,4013.6,0.1]
[1733602290986,2.15354905,4013.7,4013.6,0.3]
[1733602291160,2.15354905,4013.7,4013.6,1.50959344]
[1733602291161,3.19525503,4013.7,4013.6,1.50959344]
[1733602291494,2.15354905,4013.7,4013.6,1.50959344]
[1733602291654,3.19524416,4013.7,4013.6,1.50959344]
[1733602292074,3.19524416,4013.7,4013.6,2.26919344]
[1733602292399,2.15354905,4013.7,4013.6,2.26919344]
[1733602292599,2.1534101,4013.7,4013.6,4.01326344]
[1733602292889,1.04169511,4014.0,4013.9,0.1]
[1733602293097,3.19523884,4014.0,4013.9,0.3]
[1733602293790,0.86141749,4014.0,4013.9,4.27720401]
[1733602293992,1.04169511,4014.3,4013.9,4.27720401]
[1733602294152,2.15372315,4014.2,4013.9,3.24487319]
[1733602294347,1.04169511,4014.3,4014.2,1.7438]
[1733602294551,3.19540556,4014.3,4014.2,1.8438]
[1733602294754,3.19540556,4014.3,4014.2,2.43656496]
[1733602294953,3.19542246,4014.3,4014.2,2.43656496]
[1733602295186,2.15372735,4014.3,4014.2,2.43656496]
[1733602296967,3.19542246,4014.3,4014.2,2.43656496]
[1733602298462,3.19542246,4014.3,4014.2,0.69276496]
[1733602299563,1.72296291,4014.6,4014.2,0.69276496]
[1733602299564,1.04169511,4014.4,4014.2,0.69276496]
[1733602299769,2.1537579,4014.3,4014.2,0.69276496]
[1733602300267,2.15375712,4014.3,4014.2,0.69276496]
[1733602301474,1.04169511,4014.4,4014.2,0.69276496]
[1733602301676,0.86154638,4014.3,4014.2,2.43656496]
[1733602301973,2.15386555,4014.3,4014.2,2.43656496]
[1733602302395,2.15385014,4014.3,4014.2,2.43656496]
[1733602302819,0.86154638,4014.3,4014.2,2.43656496]
[1733602303680,2.15410479,4014.3,4014.2,2.43656496]
[1733602303900,0.86154638,4014.3,4014.2,2.43656496]
[1733602304077,2.15410462,4014.3,4014.2,2.43656496]
[1733602305125,0.86154638,4014.3,4014.2,0.69276496]
[1733602305298,2.15430622,4014.3,4014.2,0.69276496]
[1733602305499,0.86154638,4014.3,4014.2,0.69276496]
[1733602306088,2.15440061,4014.3,4014.2,0.34002685]
[1733602306999,0.86154638,4014.3,4014.2,0.34002685]
[1733602307613,2.15444946,4014.3,4014.2,0.34002685]
[1733602309522,2.15542221,4014.3,4014.2,0.34002685]
[1733602311833,3.19817089,4014.3,4014.2,0.34002685]
[1733602312032,2.15542221,4014.3,4014.2,0.34002685]
[1733602312234,3.19821521,4014.3,4014.2,0.34002685]
[1733602312393,2.15542221,4014.3,4014.2,0.34002685]
[1733602312590,3.19820152,4014.3,4014.2,0.34002685]
[1733602313205,2.93222221,4014.3,4014.2,0.34002685]
[1733602313407,4.49502654,4014.3,4014.2,0.34002685]
[1733602313608,5.35353052,4014.3,4014.2,0.04002685]
[1733602313929,5.35353052,4014.3,4013.9,0.1]
[1733602313930,4.8893643,4014.3,4013.9,0.1]
[1733602314241,1.56392601,4014.0,4013.9,0.1]
[1733602314594,2.15515885,4014.0,4013.9,0.1]
[1733602314834,2.15515885,4014.0,4013.9,0.1384912]
[1733602315011,3.71908486,4014.0,4013.9,0.1]
[1733602315510,3.95150942,4014.0,4013.9,0.1]
[1733602315712,3.87912338,4014.0,4013.9,0.1]
[1733602316033,2.15515885,4014.0,4013.9,1.84393]
[1733602316424,3.1976723,4014.0,4013.9,1.88113312]
[1733602317419,2.15515885,4014.0,4013.9,2.27364061]
[1733602317626,0.86206354,4014.0,4013.9,0.52971061]
[1733602317899,2.15508393,4014.0,4013.9,0.13720312]
[1733602318093,2.15508393,4014.0,4013.9,1.88113312]
[1733602318094,3.19757748,4014.0,4013.9,1.88113312]
[1733602318333,2.15508393,4014.0,4013.9,1.88113312]
[1733602318518,0.86206354,4014.0,4013.9,2.95337494]
[1733602318721,1.04249355,4014.3,4014.1,0.2]
[1733602318913,0.86209375,4014.2,4014.1,0.2]
[1733602319113,0.86209375,4014.2,4014.1,1.94385]
[1733602319309,1.04249355,4014.4,4014.1,0.2]
[1733602319539,2.15520716,4014.3,4014.2,1.7438]
[1733602319740,0.862088,4014.3,4014.2,1.7438]
[1733602319942,2.15521387,4014.3,4014.2,1.7438]
[1733602320253,0.862088,4014.3,4014.2,2.19465493]
[1733602320404,0.86209828,4014.3,4014.2,0.1]
[1733602320907,3.97453446,4014.3,4014.2,0.1]
[1733602321549,3.97453446,4014.3,4014.2,0.3]
[1733602322242,2.93204091,4014.3,4014.2,0.3]
[1733602322444,3.97453446,4014.3,4014.2,0.3]
[1733602322808,2.93204091,4014.3,4014.2,0.3]
[1733602323003,3.97453446,4014.3,4014.2,0.3]
[1733602324310,3.97453446,4014.3,4014.2,0.3371836]
[1733602325244,2.93204091,4014.3,4014.2,0.3371836]
[1733602325450,3.97453446,4014.3,4014.2,0.3371836]
[1733602326228,3.97464987,4014.3,4014.2,0.3371836]
[1733602326429,3.97480294,4014.3,4014.2,0.3371836]
[1733602326815,2.93215632,4014.3,4014.2,0.3371836]
[1733602327042,2.93215632,4014.3,4014.2,0.3]
[1733602327241,2.93215632,4014.3,4014.2,0.3371836]
[1733602327435,2.93215632,4014.3,4014.2,0.3]
[1733602327637,2.93210917,4014.3,4014.2,0.3371836]
[1733602327884,2.93210917,4014.3,4014.2,0.3]
[1733602328029,2.93210917,4014.3,4014.2,0.3371836]
[1733602328585,2.93210917,4014.3,4014.2,0.3]
[1733602328733,2.93210917,4014.3,4014.2,0.3371836]
[1733602329063,2.15530917,4014.3,4014.2,0.3]
[1733602329527,2.15530917,4014.3,4014.2,0.33723721]
[1733602330637,3.9519028,4014.3,4014.2,0.33723721]
[1733602330827,2.38819632,4014.3,4014.2,0.33723721]
[1733602331343,2.15530917,4014.3,4014.2,0.33723721]
[1733602331937,3.95190461,4014.3,4014.2,0.33723721]
[1733602332134,3.19799165,4014.3,4014.2,0.33723721]
[1733602332362,3.19799165,4014.3,4014.2,3.37599693]
[1733602337048,3.19799165,4014.3,4014.2,0.33723721]
[1733602337049,2.94330917,4014.3,4014.2,0.33723721]
[1733602337356,4.5085801,4014.3,4014.2,0.33723721]
[1733602337557,4.90325148,4014.3,4014.2,0.33723721]
[1733602337774,4.90333996,4014.3,4014.2,0.33723721]
[1733602338320,4.9035807,4014.3,4014.2,0.33723721]
[1733602338428,4.9035807,4014.3,4014.2,0.3]
[1733602338633,4.9035807,4014.3,4014.2,0.3359682]
[1733602340760,4.67066435,4014.3,4014.2,0.3359682]
[1733602340965,4.90359407,4014.3,4014.2,0.3359682]
[1733602341474,6.98882876,4014.3,4014.2,0.3359682]
[1733602342043,6.98882876,4014.3,4014.2,0.2359682]
[1733602343647,6.99067219,4014.3,4014.2,0.2359682]
[1733602343887,4.90359407,4014.3,4014.2,0.2359682]
[1733602344050,7.51203915,4014.3,4014.2,0.2]
[1733602344250,4.90357521,4014.3,4014.2,0.23601693]
[1733602346190,6.99099486,4014.3,4014.2,0.23601693]
[1733602346568,6.99096274,4014.3,4014.2,0.23601693]
[1733602346765,4.90357521,4014.3,4014.2,0.23601693]
[1733602346963,4.90421172,4014.3,4014.2,0.23601693]
[1733602347574,4.90430011,4014.3,4014.2,0.23601693]
[1733602349704,4.9043068,4014.3,4014.2,0.23601693]
[1733602350885,6.20365044,4014.3,4014.2,0.23601693]
[1733602351087,5.9706445,4014.3,4014.2,1.30825875]
[1733602351251,4.11628278,4014.3,4014.2,1.53057463]
[1733602351452,4.11628278,4014.3,4014.2,1.4945577]
[1733602351453,3.95596505,4014.3,4014.2,1.4945577]
[1733602351652,4.1164165,4014.3,4014.2,1.53070621]
[1733602351952,4.11632725,4014.3,4014.2,1.53070621]
[1733602352791,4.11642889,4014.3,4014.2,1.53070621]
[1733602353377,6.20377253,4014.3,4014.2,0.45846439]
[1733602353679,6.20377253,4014.3,4014.2,0.2]
[1733602354074,6.20377253,4014.3,4014.2,0.23367095]
[1733602354276,6.20377253,4014.3,4014.2,0.03367095]
[1733602354277,4.11642889,4014.3,4014.2,0.03367095]
[1733602354500,4.88732889,4014.3,4014.2,0.03367095]
[1733602354653,4.88732889,4014.3,4014.0,0.2]
[1733602354857,5.97069421,4014.2,4014.0,0.2]
[1733602355200,4.11642889,4014.1,4014.0,0.2]
[1733602356656,6.20311372,4014.1,4014.0,0.2]
[1733602359187,4.11586648,4014.1,4014.0,0.2]
[1733602359706,6.2023639,4014.1,4014.0,0.2]
[1733602360067,6.20241646,4014.1,4014.0,0.2]
[1733602361370,4.11572383,4014.1,4014.0,0.2]
[1733602361573,4.11507802,4014.1,4014.0,0.2]
[1733602364678,6.20172942,4014.1,4014.0,0.2]
[1733602364911,4.11517944,4014.1,4014.0,0.2]
[1733602365119,6.20193538,4014.1,4014.0,0.2]
[1733602366409,4.04562108,4014.1,4014.0,0.2]
[1733602366608,4.11567632,4014.1,4014.0,0.2]
[1733602366810,6.20230165,4014.1,4014.0,0.2]
[1733602367475,6.20230165,4014.1,4013.9,0.1]
[1733602367791,6.20230165,4014.0,4013.9,0.1]
[1733602368190,5.96936096,4014.0,4013.9,0.1]
[1733602368434,6.20232707,4014.0,4013.9,0.1]
[1733602368791,4.11570174,4014.0,4013.9,0.1]
[1733602368995,4.11570174,4014.0,4013.9,0.13049631]
[1733602370120,6.20232707,4014.0,4013.9,0.13049631]
[1733602370321,4.11570174,4014.0,4013.9,0.13049631]
[1733602370816,6.96852707,4014.0,4013.9,0.03049631]
[1733602371125,5.25461494,4014.0,4013.6,0.1]
[1733602371275,1.56459898,4013.7,4013.6,0.1]
[1733602371480,3.88116771,4013.7,4013.6,0.1]
[1733602371710,4.11409136,4013.7,4013.6,0.13049631]
[1733602372317,4.11409136,4013.7,4013.6,0.1]
[1733602372809,4.11409136,4013.7,4013.6,0.13049631]
[1733602373180,3.95308601,4013.7,4013.6,0.13049631]
[1733602373720,4.11319583,4013.7,4013.6,0.13049631]
[1733602374019,4.11319583,4013.7,4013.6,0.1]
[1733602375102,4.11305653,4013.7,4013.6,0.1]
[1733602375321,2.15621655,4013.7,4013.6,0.1]
[1733602376318,3.95274347,4013.7,4013.6,0.1]
[1733602376483,3.71986519,4013.7,4013.6,0.1]
[1733602376688,2.15621655,4013.7,4013.6,0.13009393]
[1733602376876,3.19878498,4013.7,4013.6,0.13009393]
[1733602377198,3.19873682,4013.7,4013.6,0.13009393]
[1733602378385,5.72435682,4013.7,4013.6,0.03009393]
[1733602378706,5.72435682,4013.7,4013.0,0.1]
[1733602378707,1.74407,4013.6,4013.0,0.1]
[1733602378912,1.04247984,4013.1,4013.0,0.1]
[1733602379222,2.15621655,4013.1,4013.0,0.1]
[1733602379576,3.19858288,4013.1,4013.0,0.1]
[1733602381112,3.19872829,4013.1,4013.0,0.1]
[1733602382307,2.15621655,4013.1,4013.0,0.1]
[1733602384001,0.86248662,4013.1,4013.0,0.12894279]
[1733602384201,1.04251174,4013.3,4013.2,0.2]
[1733602384417,2.15407748,4013.3,4013.2,0.9964]
[1733602384646,0.86163099,4013.3,4013.2,0.9964]
[1733602384804,1.04251174,4013.6,4013.5,0.2]
[1733602385003,0.86170027,4013.6,4013.5,1.27224182]
[1733602385397,0.86170027,4013.6,4013.5,1.30118461]
[1733602385590,0.86170027,4013.6,4013.5,0.22894279]
[1733602389005,2.15451223,4013.6,4013.5,0.22894279]
[1733602389211,1.04251174,4013.7,4013.5,0.22894279]
[1733602389534,2.15472277,4013.6,4013.5,0.22894279]
[1733602389911,0.86190486,4013.6,4013.5,0.22894279]
[1733602390223,2.15471757,4013.6,4013.5,0.22894279]
[1733602391112,0.86190486,4013.6,4013.5,0.22894279]
[1733602392143,2.15482056,4013.6,4013.5,0.22894279]
[1733602392316,2.15482056,4013.6,4013.5,3.43946407]
[1733602392317,0.86190486,4013.6,4013.5,3.43946407]
[1733602392508,1.04251174,4013.8,4013.7,0.1]
[1733602392707,3.19739989,4013.8,4013.7,0.1]
[1733602393032,3.19739989,4013.8,4013.7,0.12899156]
[1733602394202,3.19750461,4013.8,4013.7,0.12899156]
[1733602394645,3.19748419,4013.8,4013.7,0.12899156]
[1733602397842,3.19760341,4013.8,4013.7,0.48294284]
[1733602399245,3.1980744,4013.8,4013.7,0.48294284]
[1733602399855,2.15546386,4013.8,4013.7,0.12899156]
[1733602400010,3.71918362,4013.8,4013.7,0.12899156]
[1733602400208,4.54068362,4013.8,4013.7,0.12899156]
[1733602400403,4.77343612,4013.8,4013.7,0.12899156]
[1733602400907,4.93405066,4013.8,4013.7,0.12899156]
[1733602404044,4.93440306,4013.8,4013.7,0.12899156]
[1733602404742,4.70165056,4013.8,4013.7,0.12899156]
[1733602405049,4.93442456,4013.8,4013.7,0.12899156]
[1733602405251,4.93441905,4013.8,4013.7,0.12899156]
[1733602406459,4.70165056,4013.8,4013.7,0.12899156]
[1733602406651,4.93486924,4013.8,4013.7,0.12899156]
[1733602407838,4.93486924,4013.8,4013.7,0.1]
[1733602408172,7.54205444,4013.8,4013.7,0.02718716]
[1733602408382,7.02076385,4013.8,4013.7,0.02718716]
[1733602408534,7.02076385,4013.8,4013.3,0.1]
[1733602408731,1.04293837,4013.4,4013.3,0.1]
[1733602408961,3.19889282,4013.4,4013.3,0.1]
[1733602409574,2.15595445,4013.4,4013.3,0.1]
[1733602411665,3.19901723,4013.4,4013.3,0.1]
[1733602412303,3.19901723,4013.4,4013.3,0.49021218]
[1733602412457,3.19901723,4013.4,4013.3,2.23441218]
[1733602412871,2.15611721,4013.4,4013.3,2.23441218]
[1733602413067,3.19915067,4013.4,4013.3,2.23441218]
[1733602413245,0.86244688,4013.4,4013.3,2.23441218]
[1733602413649,2.15632977,4013.4,4013.3,2.23441218]
[1733602413854,0.86253191,4013.4,4013.3,2.23441218]
[1733602414054,0.86253191,4013.4,4013.3,2.2608439]
[1733602414465,0.86253191,4013.4,4013.3,3.33308572]
[1733602414679,2.15635001,4013.4,4013.3,3.53308572]
[1733602414882,3.19938347,4013.4,4013.3,3.53308572]
[1733602415085,2.15635001,4013.4,4013.3,3.53308572]
[1733602415405,0.86253191,4013.4,4013.3,3.53308572]
[1733602418397,1.04303346,4013.6,4013.5,1.74411]
[1733602418615,2.15670731,4013.6,4013.5,2.35038957]
[1733602418755,0.86268292,4013.6,4013.5,2.37594023]
[1733602418954,0.86268292,4013.6,4013.5,3.16154023]
[1733602419199,1.04303346,4013.8,4013.7,1.74402]
[1733602419361,3.19973434,4013.8,4013.7,3.43240684]
[1733602419799,3.19973434,4013.8,4013.7,3.4579575]
[1733602420156,2.15670088,4013.8,4013.7,3.5579575]
[1733602420564,2.15670088,4013.8,4013.7,3.7579575]
[1733602420775,1.04303346,4014.1,4014.0,0.3]
[1733602420973,0.86269614,4014.1,4014.0,5.72832939]
[1733602421175,1.04303346,4014.3,4014.0,5.75357294]
[1733602421394,1.04303346,4014.4,4014.0,4.68133112]
[1733602421578,2.1563665,4014.3,4014.2,1.7438]
[1733602421776,2.1563665,4014.3,4014.2,2.81604182]
[1733602421977,2.1563665,4014.3,4014.2,3.48340368]
[1733602421978,3.19939996,4014.3,4014.2,3.48340368]
[1733602422667,3.19939996,4014.3,4014.2,2.61116186]
[1733602422864,3.19939996,4014.3,4014.2,3.04089057]
[1733602423510,3.19877566,4014.3,4014.2,3.04089057]
[1733602423760,3.19877566,4014.3,4014.2,1.29709057]
[1733602423761,2.1557422,4014.3,4014.2,1.29709057]
[1733602424057,3.19877566,4014.3,4014.2,1.29709057]
[1733602425254,3.19844822,4014.3,4014.2,1.29709057]
[1733602427015,2.1557422,4014.3,4014.2,0.22484875]
[1733602427409,2.1557422,4014.3,4014.2,0.2]
[1733602427615,2.1557422,4014.3,4014.2,0.22475614]
[1733602428342,2.1559484,4014.3,4014.2,0.22475614]
[1733602430359,3.19896569,4014.3,4014.2,0.22475614]
[1733602431532,3.19896569,4014.3,4014.2,1.29699796]
[1733602431856,0.86237936,4014.3,4014.2,1.27224182]
[1733602432167,0.7781,4014.7,4014.2,3.4274344]
[1733602432168,1.04301729,4014.5,4014.2,3.4274344]
[1733602432319,0.86232207,4014.4,4014.2,3.04078822]
[1733602432552,1.04301729,4014.6,4014.5,0.1]
[1733602432889,3.19880837,4014.6,4014.5,0.12471226]
[1733602433096,3.19872411,4014.6,4014.5,0.12471226]
[1733602433652,2.15570682,4014.6,4014.5,1.39695408]
[1733602434375,3.19872411,4014.6,4014.5,1.39695408]
[1733602434585,3.19872411,4014.6,4014.5,1.37224182]
[1733602435102,2.15570682,4014.6,4014.5,1.3961292]
[1733602436375,0.86228273,4014.6,4014.5,1.3961292]
[1733602436577,2.1548823,4014.6,4014.5,1.3961292]
[1733602436775,0.86228273,4014.6,4014.5,1.3961292]
[1733602437900,0.86161486,4014.6,4014.5,1.3961292]
[1733602439008,0.86142364,4014.6,4014.5,1.3961292]
[1733602439205,1.04301729,4014.8,4014.5,1.3961292]
[1733602439400,2.15332135,4014.7,4014.5,1.3961292]
[1733602439697,0.86130492,4014.6,4014.5,1.3961292]
[1733602439859,1.04301729,4014.8,4014.5,1.3961292]
[1733602440075,0.86133766,4014.7,4014.5,1.3961292]
[1733602440276,1.04301729,4014.8,4014.5,1.3961292]
[1733602440488,2.15327221,4014.7,4014.5,1.3961292]
[1733602440716,1.04301729,4014.8,4014.5,1.3961292]
[1733602440901,2.1532624,4014.7,4014.5,1.3961292]
[1733602441222,0.86130835,4014.6,4014.5,1.3961292]
[1733602441388,1.04301729,4014.8,4014.5,1.3961292]
[1733602441593,0.8612856,4014.7,4014.5,1.3961292]
[1733602441894,0.8612856,4014.6,4014.5,1.3961292]
[1733602442220,2.15306956,4014.6,4014.5,1.3961292]
[1733602444813,2.15294604,4014.6,4014.5,1.3961292]
[1733602445788,3.19596333,4014.6,4014.5,1.3961292]
[1733602446027,3.42859514,4014.6,4014.5,1.37224182]
[1733602446232,3.42762975,4014.6,4014.5,1.37224182]
[1733602446398,3.19499794,4014.6,4014.5,1.39595867]
[1733602446598,3.42766779,4014.6,4014.5,1.39595867]
[1733602446834,3.19499794,4014.6,4014.5,1.39595867]
[1733602447201,3.42770952,4014.6,4014.5,1.39595867]
[1733602448161,3.42772967,4014.6,4014.5,1.39595867]
[1733602448462,2.38471238,4014.6,4014.5,1.39595867]
[1733602448950,2.93708065,4014.6,4014.5,0.12371685]
[1733602449259,3.16991342,4014.6,4014.5,0.12371685]
[1733602450147,3.16991342,4014.6,4014.5,0.02371685]
[1733602450510,3.16991342,4014.6,4014.2,1.37224182]
[1733602450851,3.42645027,4014.5,4014.2,1.37224182]
[1733602451054,0.86096102,4014.4,4014.2,1.37224182]
[1733602451225,1.04121494,4014.5,4014.2,1.37224182]
[1733602451562,0.86095856,4014.4,4014.2,1.37224182]
[1733602451726,1.04121494,4014.5,4014.2,1.37224182]
[1733602452047,2.38544709,4014.4,4014.2,1.37224182]
[1733602452221,0.86102127,4014.3,4014.2,1.37224182]
[1733602452836,1.04121494,4014.5,4014.2,1.37224182]
[1733602453009,2.1526799,4014.4,4014.2,1.37224182]
[1733602453209,1.04121494,4014.5,4014.2,1.37224182]
[1733602453210,0.86106962,4014.3,4014.2,1.37224182]
[1733602453807,2.15271116,4014.3,4014.2,1.37224182]
[1733602454212,2.3856131,4014.3,4014.2,1.37224182]
[1733602454406,3.42683062,4014.3,4014.2,1.37224182]
[1733602454838,2.38562742,4014.3,4014.2,1.37224182]
[1733602455065,2.15271116,4014.3,4014.2,1.37224182]
[1733602455770,2.1536722,4014.3,4014.2,1.37224182]
[1733602455975,0.86146888,4014.3,4014.2,1.37224182]
[1733602456835,0.86146888,4014.3,4014.2,3.11604182]
[1733602457233,2.15379142,4014.3,4014.2,3.11604182]
[1733602457447,2.15379142,4014.3,4014.2,4.31927018]
[1733602457654,2.15379142,4014.3,4014.2,3.24702836]
[1733602458958,2.15379142,4014.3,4014.2,2.46262836]
[1733602459149,3.19500636,4014.3,4014.2,2.06669151]
[1733602460082,2.15379142,4014.3,4014.2,2.06669151]
[1733602460377,3.19500636,4014.3,4014.2,2.06669151]
[1733602460589,3.19596655,4014.3,4014.2,2.06669151]
[1733602463467,2.15475161,4014.3,4014.2,2.06669151]
[1733602465296,3.71915917,4014.3,4014.2,2.06669151]
[1733602465788,3.71915917,4014.3,4014.2,2.45902484]
[1733602465789,3.72090972,4014.3,4014.2,2.45902484]
[1733602465996,2.15650216,4014.3,4014.2,2.45902484]
[1733602466447,2.1567289,4014.3,4014.2,2.45902484]
[1733602466950,3.20009759,4014.3,4014.2,3.21552484]
[1733602467176,0.86260086,4014.3,4014.2,3.21552484]
[1733602470451,1.04336869,4014.5,4014.2,3.21552484]
[1733602470651,1.04336869,4014.5,4014.4,2.81596182]
[1733602470881,3.20004431,4014.5,4014.4,2.81596182]
[1733602471382,2.15667562,4014.5,4014.4,2.83879486]
[1733602471551,3.20004431,4014.5,4014.4,2.83879486]
[1733602472053,2.15667562,4014.5,4014.4,2.83879486]
[1733602472254,3.20004431,4014.5,4014.4,2.83879486]
[1733602472455,3.20004431,4014.5,4014.4,3.49553776]
[1733602472660,1.04336869,4014.7,4014.6,1.74363]
[1733602472895,2.15658518,4014.7,4014.6,2.81587182]
[1733602473053,2.15658496,4014.7,4014.6,2.81587182]
[1733602473407,2.15658477,4014.7,4014.6,2.83870486]
[1733602473700,2.34950756,4015.0,4014.9,0.1]
[1733602473701,1.04336869,4015.0,4014.9,0.1]
[1733602473960,3.12973782,4016.0,4015.2,0.1]
[1733602473961,0.01667535,4015.3,4015.2,0.1]
[1733602474238,2.32040756,4015.8,4015.6,1.7432]
[1733602474434,2.15654917,4015.7,4015.6,1.7432]
[1733602475610,2.15654917,4015.7,4015.6,2.81544182]
[1733602476012,2.15654917,4015.7,4015.6,2.83767561]
[1733602476341,2.15654917,4015.7,4015.6,2.81544182]
[1733602477192,2.15654917,4015.7,4015.6,1.07224182]
[1733602478399,0.86261967,4015.7,4015.6,1.07224182]
[1733602479097,0.86261967,4015.7,4015.6,2.81544182]
[1733602479295,0.86261967,4015.7,4015.6,3.13946897]
[1733602479726,1.29174913,4016.0,4015.6,3.13946897]
[1733602479912,2.15287714,4015.9,4015.6,1.7432]
[1733602480110,0.756,4016.1,4015.8,1.07224182]
[1733602480331,2.15278128,4016.0,4015.8,1.07224182]
[1733602480544,2.32040756,4016.1,4015.8,1.07224182]
[1733602480545,2.15278128,4015.9,4015.8,1.07224182]
[1733602481425,0.86111258,4015.9,4015.8,1.07224182]
[1733602484337,2.15181559,4015.9,4015.8,1.07224182]
[1733602484545,0.86111258,4015.9,4015.8,1.07224182]
[1733602485045,0.86033001,4015.9,4015.8,1.07224182]
[1733602486208,2.15069585,4015.9,4015.8,1.07224182]
[1733602486409,2.1506337,4015.9,4015.8,1.07224182]
[1733602489012,0.86033001,4015.9,4015.8,1.07224182]
[1733602489792,0.86007722,4015.9,4015.8,1.07224182]
[1733602494818,0.86007722,4015.9,4015.8,1.62224182]
[1733602496516,1.09259555,4015.9,4015.8,1.62224182]
[1733602497208,0.86007722,4015.9,4015.8,1.62224182]
[1733602497407,1.09262688,4015.9,4015.8,1.62224182]
[1733602497808,2.34303771,4015.9,4015.8,1.62224182]
[1733602498013,1.05292188,4015.9,4015.8,1.62224182]
[1733602498322,2.34303771,4015.9,4015.8,1.62224182]
[1733602499010,1.05298368,4015.9,4015.8,1.62224182]
[1733602499402,0.23261146,4015.9,4015.8,1.62224182]
[1733602499576,0.23269626,4016.0,4015.9,0.55]
[1733602500171,1.52292078,4016.0,4015.9,0.55]
[1733602500372,1.52311192,4016.0,4015.9,0.55]
[1733602501223,0.23269626,4016.0,4015.9,0.55]
[1733602501386,1.52326045,4016.0,4015.9,0.55]
[1733602501785,1.52323706,4016.0,4015.9,0.55]
[1733602502014,0.23269626,4016.0,4015.9,0.55]
[1733602502477,1.52332067,4016.0,4015.9,0.55]
[1733602502879,1.52334271,4016.0,4015.9,0.55]
[1733602503878,0.23269626,4016.0,4015.9,0.55]
[1733602504919,1.52399276,4016.0,4015.9,0.75]
[1733602505122,0.23312279,4016.0,4015.9,2.75529418]
[1733602505336,0.23312279,4016.0,4015.9,3.827536]
[1733602507025,2.33350756,4016.5,4015.9,3.827536]
[1733602507026,1.29128844,4016.4,4015.9,3.827536]
[1733602507209,0.23311671,4016.3,4016.2,1.62224182]
[1733602508293,0.23311671,4016.3,4016.2,1.82224182]
[1733602508514,1.52455868,4016.3,4016.2,1.82224182]
[1733602508819,0.23311671,4016.3,4016.2,1.82224182]
[1733602509519,0.7691,4016.5,4016.3,0.55]
[1733602509520,1.80977315,4016.5,4016.3,0.55]
[1733602509727,1.5245221,4016.4,4016.3,0.55]
[1733602510484,2.56519525,4016.4,4016.3,0.55]
[1733602511322,1.5245221,4016.4,4016.3,0.55]
[1733602511532,1.80977315,4016.5,4016.3,0.55]
[1733602511533,1.04067315,4016.5,4016.3,0.55]
[1733602511830,1.04067315,4016.6,4016.3,0.55]
[1733602512124,1.29197562,4016.5,4016.3,0.55]
[1733602512325,1.04067315,4016.5,4016.3,0.55]
[1733602512483,1.29200326,4016.4,4016.3,0.55]
[1733602513116,2.33267641,4016.4,4016.3,0.55]
[1733602513320,1.29200326,4016.4,4016.3,0.55]
[1733602513491,2.33267641,4016.4,4016.3,0.55]
[1733602513698,1.29200326,4016.4,4016.3,0.55]
[1733602514626,2.33267641,4016.4,4016.3,0.55]
[1733602515388,1.29200326,4016.4,4016.3,0.55]
[1733602517434,2.85744456,4016.4,4016.3,0.55]
[1733602517791,4.72132365,4016.4,4016.0,0.55]
[1733602518118,1.04250073,4016.1,4016.0,0.55]
[1733602518289,3.19756718,4016.1,4016.0,0.55]
[1733602519402,2.15506645,4016.1,4016.0,0.55]
[1733602520723,3.71947401,4016.1,4016.0,0.55]
[1733602521234,4.48857401,4016.1,4016.0,0.55]
[1733602522348,4.49000226,4016.1,4016.0,0.55]
[1733602524539,4.88370099,4016.1,4016.0,0.55]
[1733602526611,4.72369757,4016.1,4016.0,0.55]
[1733602527108,4.72365431,4016.1,4016.0,0.55]
[1733602527316,4.72370932,4016.1,4016.0,0.55]
[1733602527740,4.88415416,4016.1,4015.9,0.1]
[1733602527948,3.72176867,4016.0,4015.9,0.55]
[1733602528101,3.95476091,4016.0,4015.9,0.55]
[1733602528607,3.72178781,4016.0,4015.9,0.55]
[1733602528806,3.9548054,4016.0,4015.9,0.55]
[1733602529005,4.11525668,4016.0,4015.9,0.55]
[1733602529330,3.95483403,4016.0,4015.9,0.55]
[1733602530003,3.95483403,4016.0,4015.8,0.65]
[1733602530343,2.1564947,4015.9,4015.8,0.65]
[1733602530917,3.95485892,4015.9,4015.8,0.65]
[1733602531761,3.95486675,4015.9,4015.8,0.65]
[1733602532060,3.95572233,4015.9,4015.8,0.65]
[1733602533315,3.9559346,4015.9,4015.8,0.65]
[1733602534720,4.11684359,4015.9,4015.8,0.65]
[1733602534917,2.39061286,4015.9,4015.8,0.65]
[1733602535122,4.11676768,4015.9,4015.8,0.65]
[1733602537162,6.20267501,4015.9,4015.8,0.65]
[1733602538469,6.20266155,4015.9,4015.8,0.65]
[1733602539188,4.11675422,4015.9,4015.8,0.65]
[1733602540055,6.2033643,4015.9,4015.8,0.65]
[1733602541628,5.97032745,4015.9,4015.8,0.65]
[1733602541951,6.20245996,4015.9,4015.8,0.65]
[1733602544628,4.11584988,4015.9,4015.8,0.65]
[1733602545131,4.1159127,4015.9,4015.8,0.65]
[1733602545504,4.11592368,4015.9,4015.8,0.65]
[1733602545652,6.20281954,4015.9,4015.8,0.65]
[1733602546900,4.11603078,4015.9,4015.8,0.65]
[1733602547056,4.11603078,4015.9,4015.8,1.09446718]
[1733602548598,4.11608002,4015.9,4015.8,1.09446718]
[1733602549270,4.11608002,4015.9,4015.8,0.65]
[1733602549474,3.95492018,4015.9,4015.8,0.65]
[1733602549680,2.3899252,4015.9,4015.8,0.65]
[1733602549881,4.11532629,4015.9,4015.8,0.65]
[1733602550073,4.11532992,4015.9,4015.8,0.65]
[1733602550282,3.95493368,4015.9,4015.8,0.65]
[1733602550795,4.11530531,4015.9,4015.8,0.65]
[1733602551710,4.11534404,4015.9,4015.8,0.65]